Department Family,Entity,Date,Expenses Type,Expense Area,Supplier,Transaction Number,  Total  ,
Department of Health,The Christie NHS Foundation Trust,14/11/2019, Drugs, Drugs,ALCURA UK LIMITED,0000629072,"78,073.50",
Department of Health,The Christie NHS Foundation Trust,14/11/2019, Drugs,Christie Medical Physics,ALLIANCE MEDICAL RADIOPHARMACY LIMITED,0000627083,"31,936.20",
Department of Health,The Christie NHS Foundation Trust,01/11/2019,Drugs, Drugs,BAXTER HEALTHCARE LTD,0000629180,"356,880.43",
Department of Health,The Christie NHS Foundation Trust,14/11/2019,Drugs, Drugs,BAXTER HEALTHCARE LTD,0000628302,"186,744.06",
Department of Health,The Christie NHS Foundation Trust,21/11/2019,Drugs, Drugs,BAXTER HEALTHCARE LTD,0000628307,"131,510.92",
Department of Health,The Christie NHS Foundation Trust,21/11/2019,Drugs, Drugs,BAXTER HEALTHCARE LTD,0000628308,"123,326.00",
Department of Health,The Christie NHS Foundation Trust,28/11/2019,Drugs, Drugs,BAXTER HEALTHCARE LTD,0000629637,"153,704.86",
Department of Health,The Christie NHS Foundation Trust,21/11/2019,Drugs, Drugs,BAXTER HEALTHCARE LTD,0000622528,"162,364.32",
Department of Health,The Christie NHS Foundation Trust,21/11/2019,Drugs, Drugs,BAXTER HEALTHCARE LTD,0000628981,"148,181.32",
Department of Health,The Christie NHS Foundation Trust,21/11/2019,Drugs, Drugs,BAXTER HEALTHCARE LTD,0000628990,"140,333.27",
Department of Health,The Christie NHS Foundation Trust,21/11/2019,Drugs, Drugs,BAXTER HEALTHCARE LTD,0000628991,"186,991.03",
Department of Health,The Christie NHS Foundation Trust,28/11/2019,Drugs, Drugs,BAXTER HEALTHCARE LTD,0000628995,"228,899.32",
Department of Health,The Christie NHS Foundation Trust,28/11/2019,Drugs, Drugs,BAXTER HEALTHCARE LTD,0000628997,"175,475.41",
Department of Health,The Christie NHS Foundation Trust,28/11/2019,Drugs, Drugs,BAXTER HEALTHCARE LTD,0000629618,"142,831.00",
Department of Health,The Christie NHS Foundation Trust,28/11/2019,Drugs, Drugs,BAXTER HEALTHCARE LTD,0000629633,"630,769.73",
Department of Health,The Christie NHS Foundation Trust,28/11/2019,Drugs, Drugs,BAXTER HEALTHCARE LTD,0000629635,"115,452.47",
Department of Health,The Christie NHS Foundation Trust,07/11/2019,Drugs, Drugs,BAXTER HEALTHCARE LTD,0000627366,"180,485.89",
Department of Health,The Christie NHS Foundation Trust,07/11/2019,Drugs, Drugs,BAXTER HEALTHCARE LTD,0000627371,"104,642.02",
Department of Health,The Christie NHS Foundation Trust,07/11/2019,Drugs, Drugs,BAXTER HEALTHCARE LTD,0000627115,"102,543.36",
Department of Health,The Christie NHS Foundation Trust,14/11/2019,Drugs, Drugs,BAXTER HEALTHCARE LTD,0000627893,"130,657.10",
Department of Health,The Christie NHS Foundation Trust,07/11/2019,Drugs, Drugs,BAXTER HEALTHCARE LTD,0000627895,"214,690.74",
Department of Health,The Christie NHS Foundation Trust,14/11/2019,Drugs, Drugs,BAXTER HEALTHCARE LTD,0000627901,"119,338.09",
Department of Health,The Christie NHS Foundation Trust,14/11/2019,Drugs, Drugs,BAXTER HEALTHCARE LTD,0000627903,"155,759.18",
Department of Health,The Christie NHS Foundation Trust,28/11/2019, Lift Development,Capital,CLASSIC LIFTS LIMITED,0000629994,"22,356.00",
Department of Health,The Christie NHS Foundation Trust,21/11/2019,Medical Equipment Maintenance Contract,Clin Support & Spec Surgery,CPP FACILITIES LLP,0000628215,"254,948.80",
Department of Health,The Christie NHS Foundation Trust,21/11/2019,Medical Equipment Maintenance Contract,Clin Support & Spec Surgery,CPP FACILITIES LLP,0000629570,"179,562.08",
Department of Health,The Christie NHS Foundation Trust,14/11/2019,Energy Contract Oct 19,Network Services,EDF ENERGY,0000629167,"38,632.21",
Department of Health,The Christie NHS Foundation Trust,14/11/2019,Energy Contract Oct 19,Network Services,EDF ENERGY,0000629168,"42,097.97",
Department of Health,The Christie NHS Foundation Trust,14/11/2019,Childcare Voucher - Jul 19,The Christie NHS FT Balance,FIDELITI LIMITED,0000628977,"25,003.03",
Department of Health,The Christie NHS Foundation Trust,07/11/2019,Medical Equipment,Clinical Support & Specialist Surgery,GE MEDICAL SYSTEMS LIMITED,0000627214,"28,218.15",
Department of Health,The Christie NHS Foundation Trust,28/11/2019,Medical Equipment,Clinical Support & Specialist Surgery,GETINGE UK LIMITED,0000629878,"25,467.00",
Department of Health,The Christie NHS Foundation Trust,14/11/2019,Paterson Development,Capital,INTEGRATED HEALTH PROJECTS,0000628138,"703,430.63",
Department of Health,The Christie NHS Foundation Trust,14/11/2019,Paterson Development,Capital,INTEGRATED HEALTH PROJECTS,0000628694,"528,713.52",
Department of Health,The Christie NHS Foundation Trust,28/11/2019,Paterson Development,Capital,INTERSERVE CONSTRUCTION LTD,0000630199,"102,739.02",
Department of Health,The Christie NHS Foundation Trust,28/11/2019,Drugs, Drugs,LLOYDSPHARMACY CLINICAL HOMECARE,0000630382,"29,472.52",
Department of Health,The Christie NHS Foundation Trust,07/11/2019,Rates 19/20,Estates & Facilities,M/CR CITY COUNCIL (RATES) DD,0000629274,"77,883.00",
Department of Health,The Christie NHS Foundation Trust,21/11/2019,Paterson Development,Capital,MACE LTD,0000629339,"76,704.00",
Department of Health,The Christie NHS Foundation Trust,14/11/2019,Urology SLA 19/20,Clinical Support & Specialist Surgery,MANCHESTER UNIVERSITY NHS FT,0000626122,"100,029.20",
Department of Health,The Christie NHS Foundation Trust,21/11/2019,PET Scans Sep 19,Christie Medical Physics,MANCHESTER UNIVERSITY NHS FT,0000628516,"126,390.00",
Department of Health,The Christie NHS Foundation Trust,07/11/2019,Clinical Nurse Recharge Apr-Jun 19,Clinical Support & Specialist Surgery,MANCHESTER UNIVERSITY NHS FT,0000627118,"28,211.00",
Department of Health,The Christie NHS Foundation Trust,14/11/2019,Drugs, Drugs,MID CHESHIRE HOSPITALS NHS FT,0000604216,"129,655.33",
Department of Health,The Christie NHS Foundation Trust,14/11/2019,Drugs, Drugs,MID CHESHIRE HOSPITALS NHS FT,0000608019,"143,412.54",
Department of Health,The Christie NHS Foundation Trust,15/11/2019,Blood Products,Network Services,NHS BLOOD AND TRANSPLANT,0000630900,"172,291.34",
Department of Health,The Christie NHS Foundation Trust,15/11/2019,NHS Litigation (NHSLA),Quality & Standards,NHS LITIGATION AUTHORITY,0000630910,"111,326.40",
Department of Health,The Christie NHS Foundation Trust,21/11/2019,Product Sales Summary,All wards and departments,NHS SUPPLY CHAIN,0000629036,"53,006.01",
Department of Health,The Christie NHS Foundation Trust,07/11/2019,Product Sales Summary,All wards and departments,NHS SUPPLY CHAIN,0000626894,"53,903.64",
Department of Health,The Christie NHS Foundation Trust,28/11/2019,Mainetance Contract,Christie Medical Physics,NHS SUPPLY CHAIN,0000629039,"86,725.00",
Department of Health,The Christie NHS Foundation Trust,14/11/2019,Consultancy,Programme Management Office,PURE dB LTD,0000629365,"22,000.00",
Department of Health,The Christie NHS Foundation Trust,14/11/2019,Consultancy,Programme Management Office,PURE dB LTD,0000628690,"21,000.00",
Department of Health,The Christie NHS Foundation Trust,21/11/2019,Audit Services,Finance & Business Developm,ROYAL LIVERPOOL & BROADGREEN NHS TRUST,0000628535,"25,593.75",
Department of Health,The Christie NHS Foundation Trust,07/11/2019,Blood Products,Network Services,THE ANTHONY NOLAN BONE MARROW,0000627068,"37,052.28",
Department of Health,The Christie NHS Foundation Trust,07/11/2019,Blood Products,Network Services,THE ANTHONY NOLAN BONE MARROW,0000620732,"38,473.45",
Department of Health,The Christie NHS Foundation Trust,21/11/2019, Drugs, Drugs,THE CHRISTIE CLINIC (HCA),0000624510,"37,536.00",
Department of Health,The Christie NHS Foundation Trust,14/11/2019,Patient Testing Service ,Clinical Support & Specialist Surgery,THE CHRISTIE PATHOLOGY PARTNERSHIP LLP,0000623592,"30,000.00",
Department of Health,The Christie NHS Foundation Trust,14/11/2019,Patient Testing Service ,Clinical Support & Specialist Surgery,THE CHRISTIE PATHOLOGY PARTNERSHIP LLP,0000626520,"377,837.20",
Department of Health,The Christie NHS Foundation Trust,21/11/2019,Patient Testing Service ,Clinical Support & Specialist Surgery,THE CHRISTIE PATHOLOGY PARTNERSHIP LLP,0000628216,"447,055.90",
Department of Health,The Christie NHS Foundation Trust,07/11/2019, Drugs, Drugs,THE CHRISTIE PHARMACY LIMITED,0000628573,"2,636,551.00",
Department of Health,The Christie NHS Foundation Trust,28/11/2019, Drugs, Drugs,THE CHRISTIE PHARMACY LIMITED,0000630507,"575,829.78",
Department of Health,The Christie NHS Foundation Trust,28/11/2019, Drugs, Drugs,THE CHRISTIE PHARMACY LIMITED,0000630506,"156,876.86",
Department of Health,The Christie NHS Foundation Trust,07/11/2019,Proton Beam Development (PBT),Network Services,VARIAN MEDICAL SYSTEMS UK LTD,0000626802,"210,160.91",
Department of Health,The Christie NHS Foundation Trust,14/11/2019,Non medical equipment,Capital,VARIAN MEDICAL SYSTEMS UK LTD,0000624767,"150,000.00",
Department of Health,The Christie NHS Foundation Trust,14/11/2019,Energy Contract- Sep 19,Estates & Facilities,VEOLIA ENERGY &UTILITY SERVICES UK PLC,628361,"192,405.02",
